bitfinex/quotes_ETHUSD_20260107
["timestamp","ask_amount","ask_price","bid_price","bid_amount"]
[1767793678592,0.001,3212.7,3212.6,0.002]
[1767793680922,0.001,3212.7,3212.3,0.95966879]
[1767793681613,0.001,3212.7,3212.3,0.002]
[1767793682397,0.001,3212.7,3212.3,0.92637545]
[1767793682789,0.001,3212.7,3212.3,0.002]
[1767793682986,1.00076322,3212.7,3212.3,0.002]
[1767793684523,0.001,3212.7,3212.3,0.92637545]
[1767793685899,0.001,3212.7,3212.3,4.03934612]
[1767793686096,0.001,3212.7,3212.4,0.40393461]
[1767793688211,0.001,3212.7,3212.4,0.03112937]
[1767793688428,0.001,3212.7,3212.3,4.0393286]
[1767793688594,0.001,3212.7,3212.4,3.1129222]
[1767793690024,0.001,3212.7,3212.4,4.03729765]
[1767793690631,0.001,3212.7,3212.4,3.1129222]
[1767793690805,0.001,3212.7,3212.5,0.31149222]
[1767793693029,0.817,3213.2,3212.7,0.92437545]
[1767793693210,1.81676322,3213.5,3212.7,0.92437545]
[1767793693822,0.99976322,3213.5,3212.7,0.92437545]
[1767793694699,0.99976322,3213.7,3212.9,0.92437545]
[1767793694931,0.99976322,3213.9,3213.1,0.92437545]
[1767793697210,4.1112591,3213.9,3213.1,0.92437545]
[1767793698500,0.99976322,3213.8,3213.1,0.92437545]
[1767793699311,0.99976322,3213.8,3213.1,4.03663333]
[1767793700516,0.99976322,3213.8,3213.1,0.92437545]
[1767793700715,0.99976322,3213.8,3213.2,0.47516389]
[1767793701407,0.99976322,3213.7,3213.0,0.71494751]
[1767793701818,0.99976322,3213.7,3213.0,1.63932296]
[1767793702222,0.99976322,3213.7,3213.0,4.75166788]
[1767793702916,0.99976322,3213.7,3213.0,1.63932296]
[1767793703120,0.001,3213.4,3213.0,1.63932296]
[1767793703335,0.001,3213.4,3213.1,0.47517331]
[1767793703712,0.001,3213.4,3213.2,0.92437545]
[1767793703911,0.001,3213.4,3213.3,0.92437545]
[1767793705006,0.001,3213.4,3213.1,4.0366267]
[1767793705203,1.00076322,3214.3,3213.6,0.92437545]
[1767793707142,3.11052392,3214.9,3214.1,0.92437545]
[1767793707434,0.99976322,3214.8,3213.8,0.92437545]
[1767793707857,4.2726753,3215.0,3214.0,0.92437545]
[1767793708141,1.42703075,3214.9,3214.0,0.92437545]
[1767793708341,0.42726753,3214.9,3214.0,0.92437545]
[1767793708640,0.42726753,3214.9,3213.9,6.22296896]
[1767793708641,0.99976322,3215.2,3214.1,0.92437545]
[1767793708839,0.99976322,3215.2,3214.1,1.74137545]
[1767793709934,6.22064632,3215.1,3214.1,0.817]
[1767793710212,0.99976322,3215.0,3214.1,0.817]
[1767793710413,0.99976322,3214.8,3214.1,0.817]
[1767793710643,0.99976322,3214.8,3213.6,0.92437545]
[1767793710850,0.99976322,3214.8,3213.7,3.1116286]
[1767793711012,0.99976322,3214.8,3213.8,3.11157186]
[1767793711216,0.99976322,3214.6,3213.7,3.11163629]
[1767793711645,1.17194364,3214.7,3213.7,0.92437545]
[1767793711963,1.17194364,3214.7,3213.9,4.10598601]
[1767793712112,1.17194364,3214.7,3214.0,0.99453184]
[1767793712839,4.02527044,3215.2,3214.0,0.99453184]
[1767793713141,4.02527044,3215.2,3214.2,0.99453184]
[1767793713521,0.91499889,3215.1,3214.2,0.99453184]
[1767793714114,0.91499889,3215.1,3214.2,4.1056346]
[1767793714319,1.31752593,3215.1,3214.2,4.1056346]
[1767793714950,0.001,3214.9,3214.2,4.1056346]
[1767793716632,0.91599889,3214.9,3214.1,0.817]
[1767793717666,0.91599889,3214.9,3214.0,3.11137264]
[1767793717866,0.91599889,3214.9,3213.9,3.11142851]
[1767793718359,4.02658067,3214.9,3213.8,4.92309553]
[1767793718562,0.91499889,3214.7,3213.9,3.11148448]
[1767793718949,0.91499889,3214.7,3213.9,6.22296896]
[1767793719153,0.91499889,3214.7,3213.9,7.2175008]
[1767793719532,0.91499889,3214.7,3214.0,0.99453184]
[1767793720458,0.91499889,3214.7,3214.0,4.10590031]
[1767793720666,1.31766392,3214.7,3214.0,0.99453184]
[1767793720866,0.91499889,3214.6,3214.0,0.99453184]
[1767793721034,0.91499889,3214.6,3214.0,4.10590617]
[1767793721654,0.91499889,3214.6,3213.8,1.81153184]
[1767793721864,0.91499889,3214.6,3213.9,0.817]
[1767793722046,1.31757005,3214.6,3213.9,0.817]
[1767793722678,1.31757005,3214.6,3213.9,3.9284408]
[1767793722844,1.31757005,3214.6,3213.9,4.92297264]
[1767793723176,0.91499889,3214.5,3213.9,3.9284408]
[1767793723371,0.91499889,3214.5,3213.9,3.1114408]
[1767793723677,4.02563291,3214.8,3214.0,0.99453184]
[1767793723841,0.40266329,3214.7,3214.0,0.99453184]
[1767793724651,0.91499889,3214.8,3214.0,0.99453184]
[1767793724852,0.91499889,3214.8,3214.2,0.99453184]
[1767793725249,0.91499889,3214.8,3214.1,3.11129087]
[1767793725250,0.001,3214.9,3214.3,0.03111097]
[1767793725563,0.97945744,3215.5,3214.3,0.817]
[1767793725564,0.91499889,3215.4,3214.3,0.817]
[1767793725763,0.91499889,3215.4,3214.4,0.99453184]
[1767793725966,0.91499889,3215.4,3214.3,0.84811097]
[1767793725967,0.91499889,3215.4,3214.5,1.17879612]
[1767793726262,0.91499889,3216.0,3214.8,0.99453184]
[1767793726448,0.91499889,3216.0,3215.0,0.99453184]
[1767793726964,0.91499889,3216.0,3215.1,4.104855]
[1767793727731,4.02447382,3216.0,3215.1,0.99453184]
[1767793727936,0.71338401,3215.9,3215.1,0.99453184]
[1767793728665,3.10947493,3216.0,3215.1,0.99453184]
[1767793729179,0.91499889,3216.0,3215.2,0.99453184]
[1767793730175,0.91499889,3216.0,3215.0,3.11037615]
[1767793730378,0.91499889,3215.7,3215.0,0.817]
[1767793730547,0.91499889,3215.5,3215.0,0.817]
[1767793731363,0.91499889,3215.5,3215.0,3.9274095]
[1767793731564,0.91499889,3215.9,3215.0,3.9274095]
[1767793732577,0.91499889,3215.9,3215.0,4.92194134]
[1767793732884,0.91499889,3215.9,3215.1,0.99453184]
[1767793733083,0.40244965,3215.8,3215.1,0.99453184]
[1767793734685,0.40244965,3215.8,3215.1,4.10483719]
[1767793736904,0.40244965,3215.8,3215.1,0.99453184]
[1767793737198,0.40244965,3215.8,3215.1,4.10485433]
[1767793738692,0.001,3215.6,3215.1,4.10485433]
[1767793738996,0.001,3215.6,3215.2,0.99453184]
[1767793740870,0.001,3215.6,3215.2,4.10475816]
[1767793741171,0.001,3215.6,3215.2,0.99453184]
[1767793741589,0.96190881,3215.6,3215.0,0.95906516]
[1767793741905,0.96190881,3215.6,3215.2,0.816]
[1767793743083,0.96190881,3215.6,3215.0,3.92640254]
[1767793744313,0.96190881,3215.6,3215.0,4.88215921]
[1767793745177,0.96190881,3215.6,3215.0,1.77175667]
[1767793745379,0.96190881,3215.6,3215.0,0.816]
[1767793746103,0.93412917,3215.5,3214.8,4.06634623]
[1767793746305,0.93412917,3215.5,3214.9,0.816]
[1767793749779,0.93412917,3215.5,3214.8,4.06636155]
[1767793750080,0.93412917,3215.5,3214.8,4.88236155]
[1767793750273,0.93412917,3215.5,3215.2,0.002]
[1767793751310,0.001,3215.6,3215.2,0.002]
[1767793751511,0.001,3215.6,3215.2,0.95775667]
[1767793751890,0.001,3215.6,3215.2,4.06792636]
[1767793752096,0.001,3215.6,3215.3,0.95575667]
[1767793756921,0.001,3215.6,3215.3,4.06586876]
[1767793757123,0.001,3215.6,3215.3,0.95575667]
[1767793757317,0.93512917,3215.6,3215.2,0.719821]
[1767793757516,0.93512917,3215.6,3214.9,0.818]
[1767793757919,0.93512917,3215.6,3214.9,3.92849431]
[1767793759718,0.93512917,3215.6,3214.9,4.88425098]
[1767793760021,0.93512917,3215.6,3214.9,5.68373678]
[1767793763224,0.93512917,3215.6,3215.2,0.002]
[1767793763425,0.001,3215.3,3215.2,0.002]
[1767793767801,0.93512917,3215.3,3215.2,0.002]
[1767793768203,0.93512917,3215.3,3214.9,0.002]
[1767793769896,0.001,3215.3,3214.9,0.002]
[1767793771032,0.001,3215.3,3214.9,0.95775667]
[1767793775636,0.001,3215.3,3215.2,0.002]
[1767793780439,0.001,3215.3,3214.9,0.002]
[1767793782114,0.94241249,3215.3,3214.9,0.002]
[1767793782626,0.94141249,3215.2,3214.9,0.002]
[1767793783039,0.94141249,3215.2,3214.8,0.816]
[1767793783234,0.94141249,3215.2,3214.1,3.11121567]
[1767793783457,0.09803625,3214.8,3214.2,0.97753544]
[1767793784016,0.09803625,3214.8,3214.3,0.97753544]
[1767793784217,1.03944874,3214.8,3214.1,0.97753544]
[1767793784446,1.03944874,3214.8,3214.2,4.08868622]
[1767793785416,0.09803625,3214.8,3214.3,0.97753544]
[1767793785937,1.03944874,3214.8,3213.8,4.08903621]
[1767793786142,1.03944874,3214.8,3214.0,3.11131959]
[1767793786350,0.94141249,3214.7,3214.0,3.11131959]
[1767793786649,0.94141249,3214.7,3213.9,4.08901992]
[1767793787422,0.94141249,3214.7,3214.5,0.001]
[1767793787721,0.09803625,3214.8,3214.0,0.97753544]
[1767793788019,1.03944874,3214.8,3214.0,0.97753544]
[1767793788233,1.03944874,3214.8,3214.1,0.97753544]
[1767793788432,0.94141249,3214.7,3213.9,0.97753544]
[1767793788643,0.94141249,3214.7,3213.9,0.81753544]
[1767793788840,0.94141249,3214.7,3213.7,4.08914753]
[1767793789055,0.94141249,3214.6,3213.7,4.08914753]
[1767793789260,0.94141249,3214.5,3213.6,0.002]
[1767793790458,0.816,3214.6,3213.2,0.97753544]
[1767793790459,0.94141249,3214.3,3213.2,0.97753544]
[1767793790765,0.94141249,3214.3,3212.9,3.92937205]
[1767793790766,0.94141249,3214.3,3213.0,3.11233392]
[1767793790935,0.94141249,3214.1,3212.9,4.08994184]
[1767793791135,0.94141249,3213.9,3212.9,4.08994184]
[1767793791360,0.94141249,3213.9,3213.0,3.11233653]
[1767793791537,0.94141249,3213.9,3213.0,3.11232163]
[1767793791740,0.94141249,3213.9,3212.9,4.08997695]
[1767793792045,1.11715374,3213.9,3212.9,1.69779674]
[1767793792655,0.94141249,3213.7,3212.9,1.69779674]
[1767793792855,0.94141249,3213.7,3212.9,0.97753544]
[1767793793482,0.94141249,3213.7,3212.7,0.97753544]
[1767793793661,0.94141249,3213.7,3212.7,4.09010999]
[1767793794173,0.94141249,3213.7,3212.6,3.11271195]
[1767793794331,0.94141249,3213.5,3212.6,3.11271195]
[1767793794743,0.94141249,3213.5,3212.6,4.09027901]
[1767793795167,0.94141249,3213.5,3212.6,7.20302258]
[1767793795341,0.71645751,3213.6,3212.7,0.97753544]
[1767793795670,0.94141249,3213.7,3212.7,0.97753544]
[1767793797777,0.94141249,3213.7,3212.5,1.12849222]
[1767793797778,0.94141249,3213.5,3212.5,1.12849222]
[1767793797966,0.94141249,3213.5,3212.6,3.11273977]
[1767793798278,0.94141249,3213.4,3212.6,3.11273977]
[1767793798449,0.94141249,3213.4,3212.7,3.11263499]
[1767793798967,0.94141249,3213.4,3212.6,3.11269642]
[1767793799538,0.94141249,3213.4,3212.5,1.28902766]
[1767793799539,0.94141249,3213.4,3213.0,0.002]
[1767793799782,0.94141249,3213.2,3212.5,0.97753544]
[1767793800137,0.94141249,3213.2,3212.4,3.11291737]
[1767793800441,0.94141249,3213.2,3212.6,0.002]
[1767793801982,0.91679842,3213.0,3212.6,0.002]
[1767793802289,0.91679842,3213.0,3212.3,0.002]
[1767793802577,0.91679842,3212.8,3212.0,3.11332262]
[1767793802792,0.91679842,3212.8,3212.0,0.90786761]
[1767793803161,0.91679842,3212.8,3211.8,0.90786761]
[1767793803505,0.91679842,3212.8,3211.9,0.90786761]
[1767793804057,0.91679842,3212.7,3211.9,0.90786761]
[1767793804377,0.91679842,3212.6,3211.9,4.02127931]
[1767793804699,0.91679842,3212.6,3211.8,3.1134712]
[1767793805011,0.44323391,3212.7,3212.0,0.90786761]
[1767793805292,0.91679842,3212.8,3212.0,0.90786761]
[1767793805856,0.91679842,3212.7,3212.0,0.90786761]
[1767793807496,0.91679842,3212.6,3211.8,0.90786761]
[1767793807790,0.91679842,3212.6,3211.8,4.02137211]
[1767793807998,0.91679842,3212.6,3211.9,0.90786761]
[1767793811491,4.02954883,3212.6,3211.9,0.90786761]
[1767793812065,0.91679842,3212.5,3211.9,0.90786761]
[1767793813290,0.91679842,3212.5,3212.2,0.002]
[1767793813666,3.92969579,3212.7,3212.2,0.002]
[1767793813974,0.001,3212.4,3212.2,0.002]
[1767793814175,0.001,3212.4,3212.0,0.74735103]
[1767793814896,0.001,3212.4,3211.9,0.002]
[1767793818798,0.91779842,3212.4,3211.9,0.002]
[1767793819396,0.91679842,3212.1,3211.4,0.002]
[1767793819566,0.91679842,3212.0,3211.4,0.002]
[1767793819771,0.817,3212.2,3211.5,3.11374037]
[1767793820090,0.91679842,3212.1,3211.4,0.90986761]
[1767793820296,0.91679842,3212.1,3211.4,4.02375797]
[1767793820504,1.09017826,3212.1,3211.4,0.002]
[1767793821088,1.09017826,3212.1,3211.4,3.11589163]
[1767793821276,7.12773588,3212.4,3211.4,0.90986761]
[1767793821277,0.91779842,3212.4,3211.4,0.90986761]
[1767793821477,0.817,3212.3,3211.5,0.90786761]
[1767793821678,0.91679842,3212.3,3211.5,0.90786761]
[1767793821883,1.73379842,3212.3,3211.5,0.90786761]
[1767793822077,1.73379842,3212.3,3211.7,0.90786761]
[1767793822682,1.73379842,3212.3,3211.4,3.11586763]
[1767793822683,0.91679842,3212.2,3211.4,3.11586763]
[1767793823075,0.91679842,3212.1,3211.4,0.002]
[1767793824190,0.91679842,3211.9,3211.4,0.002]
[1767793825900,0.91679842,3211.9,3211.1,4.01804587]
[1767793826211,0.91679842,3211.9,3211.5,0.002]
[1767793827409,0.91679842,3211.8,3211.5,0.002]
[1767793827703,0.91679842,3211.7,3210.9,3.11430297]
[1767793827908,0.91679842,3211.7,3210.6,0.002]
[1767793828077,0.91679842,3211.7,3210.6,3.11466099]
[1767793828281,0.91679842,3211.5,3210.6,0.93901443]
[1767793828490,0.91679842,3211.5,3210.6,0.90786761]
[1767793828695,0.91679842,3211.5,3210.8,0.90786761]
[1767793828988,0.91679842,3211.5,3210.6,4.02251613]
[1767793829195,0.91679842,3211.5,3210.6,3.11464852]
[1767793829397,0.91679842,3211.3,3210.6,3.11464852]
[1767793829718,0.91679842,3211.3,3210.4,0.90786761]
[1767793830006,0.91679842,3211.3,3210.4,0.86786761]
[1767793830208,1.73379842,3211.3,3210.5,3.114708]
[1767793830409,0.91679842,3211.2,3210.5,3.114708]
[1767793830606,0.91679842,3211.1,3210.4,3.98269882]
[1767793830810,0.91679842,3211.1,3210.4,3.11483121]
[1767793831178,0.91679842,3211.3,3210.5,0.90786761]
[1767793831385,0.817,3211.3,3210.5,0.90786761]
[1767793831781,1.74697946,3211.3,3210.5,0.90786761]
[1767793832277,0.92997946,3211.2,3210.5,4.02259876]
[1767793832478,0.92997946,3211.2,3210.5,3.11473115]
[1767793833310,0.92997946,3211.2,3210.4,3.11479029]
[1767793833498,0.92997946,3211.1,3210.4,3.11479029]
[1767793834425,0.92997946,3211.1,3210.4,3.11485848]
[1767793836090,0.92997946,3211.1,3210.4,6.22973513]
[1767793836289,0.92997946,3211.1,3210.4,3.11485848]
[1767793836491,0.92997946,3211.1,3210.4,0.90131091]
[1767793838019,0.92997946,3211.1,3210.7,0.002]
[1767793838213,0.92997946,3211.0,3210.7,0.002]
[1767793841922,0.92997946,3211.2,3210.7,0.002]
[1767793842837,1.74697946,3211.2,3210.7,0.002]
[1767793844638,0.817,3211.2,3210.7,0.90331091]
[1767793845339,0.817,3211.2,3210.7,0.002]
[1767793845540,1.74697946,3211.2,3210.7,0.002]
[1767793845739,0.17469795,3211.1,3210.7,0.002]
[1767793846439,1.10467741,3211.1,3210.7,0.002]
[1767793847703,1.10467741,3211.1,3210.4,3.11685575]
[1767793847704,0.92997946,3211.0,3210.4,0.002]
[1767793849141,0.92997946,3210.9,3210.4,0.002]
[1767793849308,0.92997946,3210.8,3210.4,0.002]
[1767793850944,3.28894425,3211.1,3210.4,0.002]
[1767793850945,0.17469795,3211.1,3210.4,0.90331091]
[1767793851235,0.92997946,3211.0,3210.4,0.90331091]
[1767793852007,0.001,3210.8,3210.4,0.90331091]
[1767793852632,3.11393665,3211.4,3210.4,0.90331091]
[1767793852633,0.92997946,3211.5,3210.8,0.90131091]
[1767793852811,0.92997946,3211.7,3210.8,0.90131091]
[1767793853135,3.11343597,3211.9,3210.5,0.03114779]
[1767793853136,0.92997946,3211.9,3211.0,0.90131091]
[1767793853313,1.33441482,3211.8,3211.0,0.26131091]
[1767793853514,0.817,3211.7,3211.0,0.26131091]
[1767793853834,0.92997946,3211.6,3211.0,0.26131091]
[1767793854636,1.33441482,3211.8,3211.0,0.26131091]
[1767793854811,2.15141482,3211.8,3211.0,0.26131091]
[1767793855010,1.74697946,3211.8,3211.0,0.26131091]
[1767793855411,0.001,3212.0,3211.2,0.82671831]
[1767793855737,0.817,3211.9,3211.2,0.82671831]
[1767793855923,0.001,3212.0,3211.2,0.82671831]
[1767793856324,0.817,3211.9,3211.2,0.82671831]
[1767793856534,1.74797946,3212.0,3211.2,0.82671831]
[1767793857039,0.001,3212.0,3211.3,0.82671831]
[1767793857413,0.92997946,3212.6,3211.8,0.82671831]
[1767793857618,3.11258878,3212.8,3211.8,0.82671831]
[1767793857619,0.92997946,3212.8,3211.8,0.82671831]
[1767793857935,0.817,3212.7,3211.8,0.82671831]
[1767793859648,0.92997946,3212.8,3212.0,0.82671831]
[1767793860007,0.817,3212.7,3212.0,0.82671831]
[1767793860739,0.93309127,3212.6,3211.8,3.11350597]
[1767793862012,0.94296658,3212.4,3211.3,0.82671831]
[1767793862214,0.94296658,3212.4,3210.4,0.002]
[1767793862215,0.94196658,3212.2,3211.2,3.11402495]
[1767793862411,0.94196658,3212.0,3211.1,0.82671831]
[1767793862613,0.94196658,3212.0,3211.2,3.1140836]
[1767793863134,0.94196658,3212.0,3211.3,3.11400225]
[1767793863712,0.94196658,3212.0,3211.1,0.82671831]
[1767793865139,1.75896658,3212.0,3211.1,0.82671831]
[1767793865340,1.98452071,3212.0,3211.1,0.82671831]
[1767793865834,0.94196658,3211.9,3210.8,0.82671831]
[1767793866038,0.94196658,3211.9,3210.8,0.85786319]
[1767793866214,0.94196658,3211.9,3210.7,3.14773115]
[1767793866415,0.94196658,3211.9,3211.0,3.11427905]
[1767793866629,0.94196658,3211.7,3211.1,3.11417675]
[1767793866973,0.94196658,3211.7,3211.0,3.11428346]
[1767793867424,0.94196658,3211.7,3211.1,3.11418945]
[1767793867623,0.817,3211.9,3211.2,0.82671831]
[1767793867938,0.817,3211.9,3211.3,0.82671831]
[1767793868140,0.94196658,3211.8,3210.9,3.11434175]
[1767793868309,0.94196658,3211.6,3211.0,3.11428331]
[1767793868917,0.94196658,3211.6,3210.9,3.11435258]
[1767793869938,0.94196658,3211.6,3210.7,3.11655459]
[1767793870141,0.94196658,3211.6,3210.7,6.26228604]
[1767793870353,0.94196658,3211.6,3210.7,6.23114019]
[1767793870516,0.94196658,3211.5,3210.7,3.11655459]
[1767793870831,0.94196658,3211.5,3210.7,6.23114019]
[1767793871039,0.94196658,3211.5,3210.7,0.002]
[1767793872642,0.94196658,3211.4,3210.7,0.002]
[1767793873944,0.94196658,3211.3,3210.7,0.002]
[1767793874142,0.94196658,3211.1,3210.7,0.002]
[1767793874642,0.94196658,3211.0,3210.7,0.002]
[1767793879756,1.11786324,3211.2,3210.7,0.002]
[1767793880765,4.23196526,3211.2,3210.7,0.002]
[1767793880951,0.94196658,3211.1,3210.7,0.002]
[1767793881157,1.36516311,3211.1,3210.7,0.002]
[1767793884043,0.94196658,3211.1,3210.7,0.002]
[1767793888466,0.94196658,3211.0,3210.7,0.002]
[1767793891177,0.817,3211.1,3210.7,0.002]
[1767793891348,0.17589666,3211.2,3210.7,0.002]
[1767793891548,0.99289666,3211.2,3210.7,0.002]
[1767793892158,0.17589666,3211.2,3210.7,0.002]
[1767793892356,0.99289666,3211.2,3210.7,0.002]
[1767793893173,1.94529522,3211.2,3210.7,0.002]
[1767793897579,5.05939903,3211.2,3210.7,0.002]
[1767793897779,0.95239856,3211.0,3210.7,0.002]
[1767793904690,3.11403701,3211.3,3210.7,0.002]
[1767793904691,0.95239856,3211.3,3210.7,0.002]
[1767793904890,0.95239856,3211.1,3210.7,0.002]
[1767793908573,0.817,3211.2,3210.7,0.82871831]
[1767793908780,0.95239856,3211.9,3210.9,0.82671831]
[1767793909071,0.95239856,3211.7,3211.0,0.82671831]
[1767793909282,0.95239856,3211.7,3211.0,1.22082722]
[1767793909464,0.95239856,3211.7,3211.1,0.82671831]
[1767793909669,0.817,3211.7,3211.1,0.82671831]
[1767793910059,0.001,3212.1,3211.1,0.82671831]
[1767793910275,0.817,3212.0,3211.1,0.82671831]
[1767793910876,0.001,3212.1,3211.1,0.82671831]
[1767793911186,0.001,3212.1,3211.3,0.82671831]
[1767793911388,0.001,3212.1,3211.5,0.82671831]
[1767793911563,0.001,3212.4,3212.1,0.82571831]
[1767793911766,0.95239856,3213.0,3212.3,0.82571831]
[1767793911964,0.95239856,3213.3,3212.3,0.82571831]
[1767793912164,0.817,3213.2,3212.3,0.82571831]
[1767793912667,1.30514729,3213.2,3212.3,0.82571831]
[1767793913086,1.30514729,3213.2,3212.5,0.82471831]
[1767793913396,4.41731096,3213.2,3212.5,0.82471831]
[1767793913577,8.48187319,3213.2,3212.5,0.82471831]
[1767793913889,0.001,3213.0,3212.5,0.82471831]
[1767793915587,1.49046951,3213.0,3211.9,0.82471831]
[1767793915785,0.95339856,3213.0,3212.1,0.82471831]
[1767793915978,0.95339856,3213.0,3212.1,3.93793328]
[1767793916177,0.95339856,3213.0,3212.3,0.82471831]
[1767793916375,0.001,3213.0,3212.3,0.82471831]
[1767793916580,0.001,3213.0,3212.4,0.82471831]
[1767793916792,0.001,3213.0,3212.5,0.82471831]
[1767793917586,0.001,3213.0,3212.4,0.70508257]
[1767793917788,0.95339856,3213.0,3211.7,0.85585446]
[1767793918090,0.95339856,3213.0,3211.7,0.82471831]
[1767793918594,0.95339856,3213.0,3212.0,3.93797602]
[1767793918899,0.95339856,3213.0,3212.0,0.82471831]
[1767793919518,0.95239856,3212.8,3212.0,0.82471831]
[1767793921106,0.95239856,3212.8,3212.0,3.93801587]
[1767793921400,0.817,3212.9,3212.1,0.82471831]
[1767793921589,0.817,3212.9,3212.2,3.11313118]
[1767793921793,0.95278746,3213.0,3212.2,3.93784949]
[1767793922106,0.001,3213.0,3212.3,0.82471831]
[1767793922799,0.001,3213.0,3212.3,0.85584865]
[1767793922996,0.001,3213.0,3212.4,1.22161629]
[1767793923197,0.001,3213.0,3212.5,0.82471831]
[1767793924294,0.001,3213.0,3212.0,1.53298295]
[1767793924295,0.91254069,3212.9,3212.0,1.53298295]
[1767793924502,0.91254069,3212.9,3212.0,0.85585156]
[1767793925007,0.91254069,3212.9,3212.3,3.11296685]
[1767793925188,0.91254069,3212.9,3212.4,3.11293434]
[1767793925392,0.001,3213.0,3212.4,3.11293434]
[1767793925700,0.001,3213.0,3212.3,0.82471831]
[1767793925701,0.91354069,3213.0,3212.3,3.9377075]
[1767793925878,0.91354069,3213.0,3212.4,0.70508356]
[1767793927881,0.91354069,3213.0,3212.1,3.11321952]
[1767793928609,0.91254069,3212.9,3212.2,3.11312302]
[1767793928988,0.001,3213.0,3212.4,3.93763678]
[1767793929189,0.001,3213.0,3212.5,0.85584671]
[1767793929395,0.001,3213.0,3212.5,0.82471831]
[1767793929595,0.001,3213.0,3212.5,1.52978387]
[1767793932300,0.001,3213.0,3212.5,4.64262176]
[1767793932804,0.001,3213.0,3212.6,0.82471831]
[1767793932984,0.001,3213.0,3212.7,0.85584477]
[1767793933180,0.001,3213.0,3212.7,0.22584477]
[1767793933799,0.001,3213.0,3212.7,0.94461638]
[1767793934003,0.001,3213.0,3212.7,0.22584477]
[1767793935609,0.001,3213.0,3212.7,3.3384862]
[1767793936303,0.001,3213.0,3212.8,3.36944154]
[1767793936503,0.91354069,3213.6,3212.9,0.22584477]
[1767793936703,0.001,3213.6,3212.9,0.22584477]
[1767793936906,0.001,3213.6,3212.8,6.25614657]
[1767793936907,0.001,3213.6,3213.1,0.22584477]
[1767793938520,0.001,3213.6,3213.2,3.11216233]
[1767793939527,0.001,3213.6,3213.3,0.22584477]
[1767793940691,0.001,3213.6,3213.3,3.33784257]
[1767793941604,0.001,3213.6,3213.3,6.44990804]
[1767793941802,0.91254069,3214.4,3213.5,0.22584477]
[1767793941997,0.9496673,3214.4,3213.5,0.22584477]
[1767793943322,0.91254069,3214.4,3213.6,3.11177495]
[1767793943524,0.91254069,3214.4,3213.7,0.22584477]
[1767793943822,0.91254069,3214.4,3213.7,0.87078491]
[1767793945123,0.91254069,3214.4,3213.8,0.22584477]
[1767793946031,0.91254069,3214.4,3213.7,3.756611]
[1767793946525,0.9496673,3214.3,3213.4,0.6449908]
[1767793947428,0.91254069,3214.1,3213.4,3.75695027]
[1767793947998,0.91254069,3214.1,3213.4,0.6449908]
[1767793948700,0.91254069,3214.1,3213.2,7.18799837]
[1767793949213,0.91254069,3214.1,3213.3,3.1120421]
[1767793950203,0.91354069,3214.1,3213.3,3.1120421]
[1767793950403,0.91254069,3214.0,3213.2,3.85]
[1767793950930,0.91254069,3214.0,3213.1,3.11223743]
[1767793951124,0.91254069,3214.0,3213.0,0.64819913]
[1767793951125,0.91254069,3213.9,3213.0,3.76051015]
[1767793951531,0.91254069,3213.9,3213.0,0.64819913]
[1767793951738,0.94530558,3213.7,3212.3,0.22584477]
[1767793952037,0.817,3213.8,3212.3,0.22584477]
[1767793952038,0.94530558,3213.4,3212.3,3.11300433]
[1767793952811,0.94530558,3213.2,3211.9,3.11340963]
[1767793953111,0.94530558,3213.2,3211.5,3.1137729]
[1767793953112,0.94530558,3212.9,3212.0,0.33703896]
[1767793953317,0.94530558,3212.9,3211.7,3.11354049]
[1767793953522,0.94530558,3212.9,3211.6,3.14480607]
[1767793953721,0.94530558,3212.9,3211.6,0.25698189]
[1767793953929,0.94530558,3212.9,3211.8,0.22584477]
[1767793954142,0.94530558,3212.8,3211.8,0.56290454]
[1767793955214,0.94530558,3212.8,3211.8,0.33705977]
[1767793955910,0.94530558,3212.7,3211.9,3.11342196]
[1767793957226,0.817,3213.3,3212.0,0.22584477]
[1767793957424,0.94530558,3213.4,3212.2,0.22584477]
[1767793958046,0.94530558,3213.2,3212.3,3.11303427]
[1767793958818,0.94530558,3213.2,3212.2,3.33896492]
[1767793959050,0.94530558,3213.2,3212.2,6.22625133]
[1767793959354,0.94530558,3213.2,3212.4,0.22584477]
[1767793959516,0.94530558,3213.2,3212.5,0.0311284]
[1767793960029,0.94530558,3213.2,3212.4,0.22584477]
[1767793960231,0.94530558,3213.2,3212.5,3.11284046]
[1767793962323,0.94530558,3213.2,3212.4,3.33873793]
[1767793962540,0.94530558,3213.2,3212.5,0.402589]
[1767793963729,0.94530558,3213.1,3212.5,0.402589]
[1767793965637,0.94530558,3213.1,3212.2,0.002]
[1767793966240,0.94530558,3213.1,3212.3,3.11300951]
[1767793966443,0.94530558,3213.0,3212.2,0.03313131]
[1767793966642,0.94530558,3212.8,3212.2,0.002]
[1767793968451,0.98243219,3213.2,3212.2,0.22784477]
[1767793968625,0.94530558,3213.2,3212.3,6.45191331]
[1767793970559,0.94530558,3213.2,3212.4,0.25697414]
[1767793970733,0.94530558,3213.2,3212.5,3.11284046]
[1767793971332,0.76273176,3213.2,3212.5,3.11284046]
[1767793971543,0.76273176,3213.2,3212.6,0.64516222]
[1767793971740,0.76273176,3213.2,3212.4,6.22585112]
[1767793972123,0.94530558,3213.5,3212.5,0.40841859]
[1767793972243,1.76230558,3213.5,3212.5,0.40841859]
[1767793972426,0.94530558,3213.4,3212.5,0.40841859]
[1767793972627,0.98243219,3213.3,3212.5,3.11279368]
[1767793972828,0.98243219,3213.3,3212.5,0.62258061]
[1767793973058,0.98243219,3213.3,3212.5,3.11281545]
[1767793973767,0.98243219,3213.3,3212.5,3.52123404]
[1767793974656,0.94530558,3213.3,3212.7,6.22529336]
[1767793975179,0.001,3214.1,3212.8,0.97151765]
[1767793975335,0.94530558,3213.9,3212.8,0.97151765]
[1767793975648,0.94530558,3213.9,3212.9,1.66007326]
[1767793975858,0.94530558,3213.7,3212.9,0.7196811]
[1767793977344,0.94530558,3213.6,3212.9,0.7196811]
[1767793977552,0.98243219,3213.6,3212.7,3.11259288]
[1767793977754,0.98243219,3213.6,3212.8,3.11254574]
[1767793978369,0.98243219,3213.6,3212.7,3.11260222]
[1767793978541,0.98243219,3213.6,3212.8,0.70423389]
[1767793979463,0.94530558,3213.5,3212.8,0.70423389]
[1767793980577,0.94530558,3213.5,3212.8,3.81674724]
[1767793980779,0.94530558,3213.5,3212.8,0.70423389]
[1767793980964,3.14892853,3213.6,3212.8,0.70423389]
[1767793980965,0.92817733,3213.3,3212.8,0.70423389]